bitfinex-derivatives/quotes_BTCF0:USTF0_20241125
["timestamp","ask_amount","ask_price","bid_price","bid_amount"]
[1732548747299,0.67304051,96077.0,96032.0,0.27412]
[1732548747300,0.31224,96076.0,96051.0,0.052047]
[1732548747527,0.3608,96058.0,96032.0,0.63592]
[1732548747715,0.0004,96052.0,96048.0,0.052049]
[1732548748331,0.0004,96052.0,96044.0,0.38336443]
[1732548748602,0.0004,96052.0,96051.0,0.052047]
[1732548749510,0.3608,96076.0,96051.0,0.052047]
[1732548749511,0.3608,96076.0,96066.0,0.052039]
[1732548749706,0.3608,96076.0,96074.0,0.052035]
[1732548749914,5.1e-07,96077.0,96076.0,0.052034]
[1732548750301,5.1e-07,96077.0,96075.0,0.3612]
[1732548750498,5.1e-07,96077.0,96075.0,0.0004]
[1732548750797,0.0004,96076.0,96069.0,0.052037]
[1732548751039,0.0004,96076.0,96056.0,0.38255304]
[1732548751202,0.0004,96070.0,96069.0,0.052038]
[1732548751542,5.1e-07,96077.0,96056.0,0.38255304]
[1732548751543,5.1e-07,96077.0,96076.0,0.052034]
[1732548753017,5.1e-07,96077.0,96069.0,0.052037]
[1732548753310,5.1e-07,96077.0,96064.0,0.3608]
[1732548753311,0.3608,96073.0,96071.0,0.052036]
[1732548753509,0.3608,96073.0,96051.0,0.3608]
[1732548753510,0.3608,96073.0,96066.0,0.02200196]
[1732548753728,0.3608,96073.0,96063.0,0.052041]
[1732548754006,0.3608,96064.0,96055.0,0.052045]
[1732548754519,0.0004,96056.0,96055.0,0.052045]
[1732548754814,0.0004,96056.0,96051.0,0.38244911]
[1732548755214,0.3608,96053.0,96051.0,0.052047]
[1732548755509,0.0004,96052.0,96051.0,0.052047]
[1732548755911,0.31244667,96051.0,96020.0,7.442e-05]
[1732548756211,0.3608,96021.0,96020.0,0.05213842]
[1732548756395,0.3612,96021.0,96020.0,0.05213842]
[1732548756601,0.0004,96021.0,96020.0,0.05213842]
[1732548756833,0.3608,96039.0,96020.0,0.02177199]
[1732548757308,0.3608,96039.0,96038.0,0.00040001]
[1732548757502,0.67316,96039.0,96038.0,0.00040001]
[1732548757811,0.36980742,96039.0,96038.0,0.00040001]
[1732548758111,0.3608,96039.0,96038.0,0.00040001]
[1732548759419,0.37009233,96039.0,96038.0,0.00040001]
[1732548760205,0.38521048,96039.0,96038.0,4.3e-06]
[1732548761409,0.37009233,96039.0,96038.0,4.3e-06]
[1732548762317,0.3608,96039.0,96038.0,4.3e-06]
[1732548762608,0.36981489,96039.0,96038.0,4.3e-06]
[1732548763010,0.42186889,96039.0,96038.0,4.3e-06]
[1732548763314,0.412854,96039.0,96038.0,4.3e-06]
[1732548765516,1.02531614,96039.0,96038.0,4.3e-06]
[1732548766006,1.02531614,96039.0,96020.0,7.442e-05]
[1732548766007,0.052064,96021.0,96020.0,7.442e-05]
[1732548766216,1.040704,96021.0,96020.0,7.442e-05]
[1732548766398,0.052464,96021.0,96020.0,7.442e-05]
[1732548766599,0.0004,96021.0,96020.0,7.442e-05]
[1732548766800,0.0004,96021.0,96020.0,0.00150248]
[1732548767005,0.3612,96021.0,96020.0,0.00150248]
[1732548767199,0.3612,96021.0,96020.0,0.02326447]
[1732548768508,0.3612,96021.0,96020.0,0.00150248]
[1732548769615,0.67364,96021.0,96020.0,0.00150248]
[1732548769810,0.3612,96021.0,96020.0,0.00150248]
[1732548770001,0.94085398,96021.0,95978.0,0.18392869]
[1732548770208,0.94085398,96021.0,95977.0,0.18392869]
[1732548770209,0.412874,96001.0,95977.0,0.18392869]
[1732548770405,0.412874,96001.0,95973.0,1.27012]
[1732548770406,0.413274,96001.0,96000.0,0.12158347]
[1732548770617,0.774074,96001.0,96000.0,0.12158347]
[1732548771816,0.722,96001.0,96000.0,0.12158347]
[1732548772007,0.722,96001.0,96000.0,0.48238347]
[1732548772008,0.0004,96001.0,96000.0,0.48238347]
[1732548772309,0.36093398,96021.0,96000.0,0.48238347]
[1732548772310,0.36093398,96021.0,96019.0,0.052065]
[1732548772709,0.36093398,96021.0,96020.0,0.0004]
[1732548773914,0.00013398,96021.0,96020.0,0.31284]
[1732548774115,0.00013398,96021.0,96020.0,0.0004]
[1732548777014,0.00013398,96021.0,96020.0,0.364904]
[1732548777218,0.00013398,96021.0,96020.0,0.725704]
[1732548777419,0.15213091,96067.0,96020.0,0.725704]
[1732548777420,0.3608,96054.0,96020.0,0.97364]
[1732548777723,0.3608,96054.0,96053.0,0.0004]
[1732548778215,1.03392,96054.0,96053.0,0.0004]
[1732548778520,0.052054,96039.0,96024.0,0.052062]
[1732548778723,0.3608,96029.0,96024.0,0.052062]
[1732548779024,0.0004,96025.0,96024.0,0.02214159]
[1732548779220,0.0004,96025.0,96023.0,0.052062]
[1732548779517,0.0004,96024.0,96023.0,0.052062]
[1732548779919,8.049e-05,96028.0,96027.0,0.05206]
[1732548780114,4.9e-07,96028.0,96027.0,0.72526]
[1732548780318,4.9e-07,96028.0,96027.0,1.02566]
[1732548780517,4.9e-07,96028.0,96027.0,0.72566]
[1732548780724,4.9e-07,96028.0,96027.0,1.02566]
[1732548781106,0.0004,96056.0,96055.0,0.052045]
[1732548781263,0.0004,96056.0,96055.0,0.412845]
[1732548781506,0.0004,96056.0,96055.0,0.413245]
[1732548781613,0.0004,96056.0,96055.0,0.052445]
[1732548781829,4.3e-07,96056.0,96055.0,0.413245]
[1732548782026,0.3608,96088.0,96087.0,0.052028]
[1732548782416,0.3608,96099.0,96090.0,0.052026]
[1732548782617,0.36236163,96091.0,96090.0,0.052026]
[1732548782928,0.3608,96099.0,96098.0,0.052022]
[1732548783221,0.3608,96099.0,96098.0,0.052822]
[1732548783826,0.3608,96099.0,96098.0,0.0008]
[1732548784027,0.412821,96099.0,96098.0,0.0008]
[1732548784222,0.052023,96096.0,96069.0,0.18618121]
[1732548784469,0.052022,96098.0,96055.0,0.18618121]
[1732548784470,0.3608,96067.0,96055.0,0.18618121]
[1732548784741,0.3608,96067.0,96046.0,0.43447993]
[1732548784742,0.3608,96056.0,96046.0,0.43447993]
[1732548785044,0.3608,96056.0,96045.0,0.05205]
[1732548785045,0.0004,96047.0,96045.0,0.05205]
[1732548785216,0.3608,96046.0,96045.0,0.05205]
[1732548785426,0.3612,96046.0,96038.0,0.02179941]
[1732548785621,0.3612,96046.0,96038.0,9.371e-05]
[1732548785829,0.0004,96039.0,96038.0,0.05214771]
[1732548788244,0.00156187,96075.0,96039.0,0.31236]
[1732548788549,0.12358748,96094.0,96083.0,0.05203]
[1732548788715,0.12358748,96094.0,96092.0,0.052025]
[1732548788918,0.3608,96109.0,96075.0,0.6768]
[1732548788919,0.3608,96099.0,96075.0,0.316]
[1732548789133,0.3608,96091.0,96087.0,0.052028]
[1732548789329,0.0004,96076.0,96075.0,0.368034]
[1732548789528,0.3608,96099.0,96098.0,0.052022]
[1732548790012,0.3608,96110.0,96105.0,0.052018]
[1732548790227,0.3608,96110.0,96099.0,0.052021]
[1732548790530,0.05203,96084.0,96060.0,0.18590753]
[1732548790725,0.05203,96084.0,96052.0,0.3608]
[1732548790726,0.3608,96074.0,96054.0,0.052046]
[1732548790991,0.3608,96074.0,96052.0,0.3618]
[1732548790992,0.3608,96065.0,96052.0,0.3618]
[1732548791146,0.3608,96065.0,96032.0,0.3103734]
[1732548791147,0.0004,96055.0,96053.0,0.052046]
[1732548791354,0.0004,96055.0,96043.0,0.3076]
[1732548791355,0.0004,96053.0,96045.0,0.001]
[1732548791624,0.0004,96053.0,96052.0,0.052047]
[1732548791831,0.0004,96055.0,96052.0,0.052047]
[1732548792021,0.0004,96055.0,96043.0,0.01795596]
[1732548792022,0.0004,96055.0,96050.0,0.052048]
[1732548792221,0.0004,96055.0,96030.0,0.3608]
[1732548792222,0.0004,96055.0,96054.0,0.052046]
[1732548793931,0.0004,96055.0,96044.0,0.052051]
[1732548794273,0.0004,96055.0,96006.0,0.07289367]
[1732548794274,0.052054,96040.0,96006.0,0.07289367]
[1732548794472,0.3608,96039.0,96029.0,0.052059]
[1732548794730,0.3608,96039.0,96006.0,0.07289367]
[1732548794731,0.3608,96039.0,96037.0,0.052055]
[1732548795228,0.3608,96039.0,96031.0,0.052058]
[1732548795632,0.3608,96039.0,96024.0,0.01797534]
[1732548795819,0.3608,96039.0,96037.0,0.052055]
[1732548796027,0.3608,96039.0,96024.0,0.01797534]
[1732548796028,0.3608,96039.0,96038.0,0.05214771]
[1732548796221,0.0004,96045.0,96044.0,0.052051]
[1732548796623,0.0004,96045.0,96044.0,0.00119999]
[1732548796624,0.00365603,96045.0,96044.0,0.00119999]
[1732548796831,0.00365603,96045.0,96044.0,0.05325099]
[1732548797241,0.01277338,96045.0,96044.0,0.05325099]
[1732548797430,0.01277338,96045.0,96044.0,0.36561099]
[1732548797431,0.00951735,96045.0,96044.0,0.36561099]
[1732548797625,0.12346011,96053.0,96052.0,0.052047]
[1732548798101,0.06789911,96053.0,96052.0,0.052047]
[1732548798103,0.00156192,96081.0,96063.0,0.052041]
[1732548798529,0.00156192,96081.0,96063.0,0.725121]
[1732548798751,0.00156192,96081.0,96076.0,0.052034]
[1732548799734,0.3608,96080.0,96076.0,0.00199999]
[1732548800135,0.2176927,96077.0,96076.0,0.00199999]
[1732548800644,0.2176927,96077.0,96042.0,0.2526]
[1732548800645,0.052035,96074.0,96042.0,0.2526]
[1732548800840,0.3608,96063.0,96061.0,0.052042]
[1732548801071,0.43283383,96077.0,96042.0,0.2526]
[1732548801072,0.3608,96072.0,96066.0,0.052039]
[1732548801237,0.3608,96070.0,96045.0,0.05205]
[1732548801434,0.00325508,96069.0,96043.0,0.3608]
[1732548801742,0.3608,96059.0,96058.0,0.052044]
[1732548801933,0.36405519,96059.0,96058.0,0.052044]
[1732548802242,0.36405519,96059.0,96043.0,0.37849152]
[1732548802243,0.36405513,96059.0,96043.0,0.37849152]
[1732548802535,0.57863576,96070.0,96043.0,0.37849152]
[1732548802536,0.00325525,96058.0,96052.0,0.3608]
[1732548802737,0.3608,96078.0,96077.0,0.052033]
[1732548802924,0.59952429,96089.0,96077.0,0.052033]
[1732548802925,0.00056001,96086.0,96077.0,0.052033]
[1732548803150,0.36140001,96090.0,96089.0,0.052027]
[1732548803151,0.3608,96090.0,96089.0,0.052027]
[1732548803553,0.3608,96090.0,96072.0,0.3608]
[1732548803732,0.3608,96090.0,96064.0,0.3608]
[1732548803733,0.3608,96090.0,96089.0,0.0004]
[1732548805137,0.673,96090.0,96089.0,0.0004]
[1732548805746,1.22556,96090.0,96042.0,0.3608]
[1732548805936,0.3608,96053.0,96042.0,0.37798914]
[1732548806147,0.0004,96043.0,96042.0,0.43004114]
[1732548806537,0.3608,96058.0,96042.0,0.99034914]
[1732548806738,0.3608,96059.0,96043.0,0.25256]
[1732548806934,0.0032553,96058.0,96057.0,0.0004]
[1732548807137,0.3608,96076.0,96057.0,0.052444]
[1732548807337,0.57523806,96086.0,96065.0,0.3608]
[1732548807338,0.00325529,96075.0,96065.0,0.3608]
[1732548807772,0.84119576,96100.0,96079.0,0.052032]
[1732548807773,0.3608,96080.0,96079.0,0.052032]
[1732548807976,0.3608,96080.0,96065.0,0.3608]
[1732548808144,0.3608,96068.0,96057.0,0.0004]
[1732548808438,0.57863576,96080.0,96057.0,0.0004]
[1732548808439,0.3608,96065.0,96057.0,0.0004]
[1732548808631,0.3608,96065.0,96063.0,0.052041]
[1732548809051,0.3608,96065.0,96057.0,0.0004]
[1732548809339,0.3608,96065.0,96057.0,0.01810538]
[1732548809534,0.0004,96058.0,96057.0,0.07014938]
[1732548809929,0.0004,96058.0,96057.0,0.0004]
[1732548811058,0.0004,96058.0,96041.0,0.01767543]
[1732548811059,0.31272,96058.0,96041.0,0.01767543]
[1732548811233,0.31272,96058.0,96029.0,0.25256]
[1732548811234,0.3608,96042.0,96029.0,0.25256]
[1732548811444,0.3612,96042.0,96029.0,0.25256]
[1732548811640,0.0004,96040.0,96039.0,0.01928786]
[1732548811844,0.052453,96040.0,96039.0,0.00136095]
[1732548812347,0.052453,96040.0,96004.0,0.43748]
[1732548812348,0.31236,96039.0,96004.0,0.43748]
[1732548812543,0.3608,96014.0,96000.0,0.152075]
[1732548812841,0.3612,96001.0,96000.0,0.152075]
[1732548813030,0.37029891,96001.0,96000.0,0.152075]
[1732548813233,0.37029891,96001.0,96000.0,0.48207657]
[1732548813438,0.37038962,96001.0,96000.0,0.48207657]
[1732548813701,0.08245934,96040.0,96000.0,0.48207657]
[1732548813702,0.3608,96028.0,96000.0,1.09080157]
[1732548813842,0.3608,96028.0,96000.0,0.11752157]
[1732548813843,0.412868,96014.0,96000.0,0.11752157]
[1732548814033,0.412874,96003.0,96000.0,0.1]
[1732548814245,0.052074,96001.0,96000.0,0.1]
[1732548814480,0.3608,96003.0,96000.0,0.1]
[1732548814749,0.052074,96001.0,96000.0,0.1]
[1732548814983,0.052074,96001.0,96000.0,0.05298164]
[1732548815246,0.364554,96001.0,96000.0,0.05298164]
[1732548816142,0.00156273,96033.0,96000.0,0.05298164]
[1732548816443,0.3114,96061.0,96032.0,0.3608]
[1732548816647,0.3114,96061.0,96054.0,0.3608]
[1732548816648,0.052045,96055.0,96054.0,0.3608]
[1732548816864,0.36762041,96055.0,96054.0,0.3608]
[1732548817158,0.36762041,96055.0,96010.0,0.052069]
[1732548817159,0.31236,96054.0,96010.0,0.052069]
[1732548817367,0.3608,96018.0,96004.0,0.3608]
[1732548817677,0.3608,96018.0,96000.0,0.05298164]
[1732548817678,0.0004,96011.0,96000.0,0.05298164]
[1732548818043,0.0004,96001.0,96000.0,0.05298164]
[1732548819443,0.0014,96001.0,96000.0,0.05298164]
[1732548819642,0.0014,96001.0,96000.0,0.41378164]
[1732548819957,0.09260997,96008.0,96000.0,1.02626164]
[1732548820155,0.09260997,96013.0,96009.0,0.05207]
[1732548820444,0.15437934,96041.0,96012.0,0.3608]
[1732548820654,0.51517934,96057.0,96040.0,0.3608]
[1732548820849,0.3608,96057.0,96040.0,0.3608]
[1732548821042,0.3608,96057.0,96056.0,0.00080001]
[1732548821280,0.712844,96057.0,96056.0,0.00080001]
[1732548821551,0.67312,96057.0,96056.0,0.00080001]
[1732548821743,0.24714714,96099.0,96056.0,0.00080001]
[1732548821744,0.15442758,96074.0,96056.0,0.00080001]
[1732548822064,0.01777636,96118.0,96100.0,0.052021]
[1732548822259,0.02084961,96132.0,96110.0,0.3608]
[1732548822453,0.02084961,96132.0,96117.0,0.00080001]
[1732548822454,0.21783576,96120.0,96117.0,0.00080001]
[1732548822855,0.3608,96118.0,96117.0,0.00080001]
[1732548823038,0.3608,96118.0,96095.0,0.3608]
[1732548823240,0.3608,96109.0,96095.0,0.3608]
[1732548823462,0.0004,96096.0,96095.0,0.3608]
[1732548823652,0.0004,96096.0,96062.0,0.02084961]
[1732548823653,0.25308,96096.0,96080.0,0.052032]
[1732548823855,0.25308,96096.0,96074.0,0.3608]
[1732548823856,0.25308,96096.0,96084.0,0.052029]
[1732548824168,0.25308,96096.0,96074.0,0.3608]
[1732548824169,0.0004,96081.0,96074.0,0.3608]
[1732548824300,0.0004,96081.0,96080.0,0.052032]
[1732548824708,0.0004,96081.0,96074.0,0.3608]
[1732548824709,0.25268,96096.0,96083.0,0.05203]
[1732548824774,0.25268,96096.0,96084.0,0.052029]
[1732548824944,0.25268,96096.0,96095.0,0.0004]
[1732548825358,0.56488,96096.0,96095.0,0.0004]
[1732548825948,0.56488,96096.0,96074.0,0.3608]
[1732548825949,0.56588,96096.0,96080.0,0.052031]
[1732548826154,0.56588,96096.0,96082.0,0.3608]
[1732548826155,0.25368,96096.0,96082.0,0.3608]
[1732548826371,0.21783576,96120.0,96074.0,0.3608]
[1732548826372,0.00060001,96106.0,96095.0,0.3608]
[1732548826651,0.3608,96125.0,96095.0,0.3608]
[1732548826652,0.3608,96125.0,96105.0,0.3608]
[1732548826841,0.2488,96129.0,96105.0,0.3612]
[1732548827486,0.300806,96129.0,96116.0,0.052012]
[1732548827567,0.052007,96126.0,96116.0,0.052012]
[1732548827759,0.00325358,96125.0,96116.0,0.3608]
[1732548827962,0.2488,96138.0,96137.0,0.052001]
[1732548828150,0.25205302,96138.0,96137.0,0.412801]
[1732548828345,0.25205302,96138.0,96137.0,0.0004]
[1732548828864,0.56409302,96138.0,96137.0,0.0004]
[1732548829246,0.56409302,96138.0,96117.0,0.3608]
[1732548829445,0.57863576,96130.0,96117.0,0.3608]
[1732548829647,0.0008,96118.0,96117.0,0.3608]
[1732548830055,0.0008,96118.0,96117.0,0.412812]
[1732548830356,0.00405302,96118.0,96117.0,0.412812]
[1732548832157,0.3608,96152.0,96117.0,0.67292]
[1732548832380,0.3608,96163.0,96117.0,0.67292]
[1732548832381,0.3608,96163.0,96142.0,0.3608]
[1732548832544,0.3608,96175.0,96167.0,0.051985]
[1732548832757,0.02082262,96168.0,96161.0,0.3608]
[1732548832963,0.00917009,96167.0,96165.0,0.051985]
[1732548833273,0.00917009,96167.0,96161.0,0.3608]
[1732548833274,0.3608,96175.0,96162.0,0.051987]
[1732548833557,0.3608,96175.0,96174.0,0.0004]
[1732548833765,0.412781,96175.0,96174.0,0.0004]
[1732548834120,0.36996586,96175.0,96174.0,0.0004]
[1732548834357,0.24868,96176.0,96174.0,0.0004]
[1732548834486,0.02082262,96190.0,96174.0,0.0004]
[1732548834643,0.02082262,96190.0,96178.0,0.051978]
[1732548834848,0.02082262,96190.0,96147.0,0.0026]
[1732548834849,0.051987,96163.0,96147.0,0.0026]
[1732548835153,0.051987,96163.0,96137.0,0.3608]
[1732548835154,0.24864,96163.0,96145.0,0.3608]
[1732548835359,0.0004,96148.0,96145.0,0.3608]
[1732548835650,0.0004,96148.0,96146.0,0.051996]
[1732548836957,0.0014,96148.0,96146.0,0.051996]
[1732548838449,0.0014,96148.0,96140.0,0.051999]
[1732548838450,0.3608,96147.0,96140.0,0.051999]
[1732548838760,0.3608,96146.0,96134.0,8.597e-05]
[1732548838950,0.052002,96136.0,96134.0,8.597e-05]
[1732548839160,0.0004,96135.0,96134.0,8.597e-05]
[1732548839357,0.31248,96135.0,96134.0,8.597e-05]
[1732548840556,0.0004,96135.0,96134.0,8.597e-05]
[1732548840952,0.31248,96135.0,96134.0,8.597e-05]
[1732548841268,0.052011,96119.0,96102.0,0.0026]
[1732548841464,0.2486,96118.0,96098.0,0.01704011]
[1732548841652,0.3608,96122.0,96098.0,0.01704011]
[1732548841653,0.2486,96117.0,96108.0,0.3608]
[1732548841858,0.2486,96117.0,96079.0,0.02341306]
[1732548841859,0.2486,96117.0,96083.0,0.3608]
[1732548842054,0.2486,96117.0,96079.0,0.02341306]
[1732548842055,0.2486,96117.0,96116.0,0.052012]
[1732548842278,0.24870672,96117.0,96109.0,0.3608]
[1732548842557,0.24870672,96117.0,96094.0,0.0166905]
[1732548842558,0.052014,96113.0,96111.0,0.052015]
[1732548842873,0.3608,96113.0,96094.0,0.0166905]
[1732548843162,0.3608,96113.0,96085.0,0.3608]
[1732548843163,0.052018,96106.0,96097.0,0.052022]
[1732548843367,0.052018,96106.0,96075.0,0.05212404]
[1732548843368,0.052018,96106.0,96105.0,0.052418]
[1732548843558,0.00110672,96117.0,96115.0,0.052012]
[1732548843881,0.00110672,96117.0,96116.0,0.3612]
[1732548844414,0.00110672,96117.0,96116.0,0.67332]
[1732548844656,0.0004,96135.0,96116.0,0.97332]
[1732548844962,0.00056001,96152.0,96151.0,0.051993]
[1732548845160,0.2976,96167.0,96151.0,0.412793]
[1732548845457,0.2976,96167.0,96151.0,0.3608]
[1732548846134,0.2976,96167.0,96151.0,0.3612]
[1732548846352,0.2976,96167.0,96166.0,0.0004]
[1732548846477,0.3608,96176.0,96166.0,0.0004]
[1732548846570,0.051976,96183.0,96168.0,0.3608]
[1732548846759,0.051976,96183.0,96175.0,0.0004]
[1732548846971,0.051976,96183.0,96169.0,0.051983]
[1732548846972,0.051976,96183.0,96182.0,0.0004]
[1732548847361,0.363896,96183.0,96182.0,0.0004]
[1732548847562,0.051976,96183.0,96182.0,0.0004]
[1732548848871,0.051976,96183.0,96154.0,0.0194046]
[1732548848872,0.38472279,96183.0,96154.0,0.0026]
[1732548849050,0.38472279,96183.0,96136.0,0.3608]
[1732548849051,0.3608,96159.0,96155.0,0.01495936]
[1732548849252,0.0004,96155.0,96148.0,0.051994]
[1732548849501,0.0004,96155.0,96152.0,0.051992]
[1732548849655,0.25628,96158.0,96153.0,0.01170915]
[1732548849852,0.25628,96158.0,96154.0,0.00650508]
[1732548850061,0.25628,96158.0,96153.0,0.00520407]
[1732548850062,0.051983,96170.0,96157.0,0.0004]
[1732548850255,0.25624,96166.0,96158.0,0.01496169]
[1732548850452,0.051986,96164.0,96159.0,0.01496169]
[1732548850666,0.051988,96162.0,96160.0,0.01496169]
[1732548850861,0.051988,96162.0,96161.0,0.00325254]
[1732548851070,0.74235472,96162.0,96136.0,0.3608]
[1732548851265,0.3608,96146.0,96137.0,0.01496271]
[1732548851465,0.3608,96146.0,96136.0,0.3608]
[1732548851466,0.3608,96146.0,96145.0,0.051997]
[1732548851662,0.3608,96146.0,96145.0,0.06695971]
[1732548851854,0.3608,96146.0,96145.0,0.06696015]
[1732548852061,0.2941,96161.0,96145.0,0.06696015]
[1732548852263,0.2941,96161.0,96146.0,0.01496315]
[1732548852477,0.2941,96161.0,96147.0,0.01496315]
[1732548852478,0.3608,96157.0,96147.0,0.01496315]
[1732548852826,0.3608,96157.0,96148.0,0.00520429]
[1732548852889,0.3608,96157.0,96148.0,0.00650537]
[1732548853058,0.3608,96157.0,96156.0,0.051991]
[1732548853262,0.3608,96157.0,96156.0,0.06695344]
[1732548853472,0.25624,96160.0,96156.0,0.01496244]
[1732548853656,0.25624,96160.0,96157.0,0.01496244]
[1732548853977,0.25624,96160.0,96158.0,0.01496179]
[1732548854170,0.25624,96161.0,96159.0,0.06735079]
[1732548854364,0.43716,96177.0,96168.0,0.051984]
[1732548854573,0.25624,96176.0,96169.0,0.01496179]
[1732548854879,0.25624,96176.0,96170.0,0.01496179]
[1732548855072,0.25624,96176.0,96174.0,0.00073025]
[1732548855371,0.25624,96176.0,96171.0,0.01496179]
[1732548855372,0.051982,96173.0,96171.0,0.0052041]
[1732548855679,0.051982,96173.0,96172.0,0.00650402]
[1732548855974,0.051982,96173.0,96153.0,0.2482407]
[1732548855975,0.363902,96173.0,96160.0,0.051988]
[1732548856187,0.36144,96175.0,96161.0,0.00325232]
[1732548856188,0.3608,96166.0,96161.0,0.00325232]
[1732548856477,0.3608,96166.0,96162.0,0.01496069]
[1732548856668,0.3608,96166.0,96163.0,0.00845604]
[1732548856669,0.051986,96165.0,96163.0,0.00845604]
[1732548856972,0.051986,96165.0,96162.0,0.00650465]
[1732548856973,0.051987,96163.0,96162.0,0.00650465]
[1732548857164,0.3608,96166.0,96150.0,0.00073052]
[1732548857364,0.3608,96166.0,96145.0,0.18618052]
[1732548857365,0.3608,96157.0,96152.0,0.051992]
[1732548857567,0.24928,96156.0,96153.0,0.00325259]
[1732548857865,0.24928,96155.0,96154.0,0.00845673]
[1732548858295,0.86128,96155.0,96136.0,0.18618052]
[1732548858472,0.86128,96155.0,96129.0,0.18610398]
[1732548858473,0.412801,96137.0,96129.0,0.18610398]
[1732548858683,0.052017,96108.0,96106.0,0.00073363]
[1732548858891,1.0472,96107.0,96092.0,0.00116]
[1732548859086,1.0472,96107.0,96092.0,0.052025]
[1732548859087,0.738418,96106.0,96092.0,0.052025]
[1732548859415,0.738818,96106.0,96087.0,0.01672932]
[1732548859796,0.738818,96106.0,96094.0,0.052024]
[1732548859800,0.738818,96106.0,96082.0,0.37236105]
[1732548859801,0.052023,96096.0,96082.0,0.37236105]
[1732548860027,0.57863576,96092.0,96089.0,0.37236105]
[1732548860362,0.052026,96091.0,96089.0,0.37236105]
[1732548860575,0.57863576,96092.0,96075.0,0.05212404]
[1732548860880,0.052034,96077.0,96075.0,9.004e-05]
[1732548861090,0.24928,96076.0,96075.0,9.004e-05]
[1732548862178,0.43712,96078.0,96075.0,9.004e-05]
[1732548862179,0.43712,96078.0,96077.0,0.052033]
[1732548862380,0.68644,96078.0,96077.0,0.052033]
[1732548863091,0.3608,96100.0,96075.0,0.01693252]
[1732548863092,0.43724,96097.0,96075.0,0.01693252]
[1732548863264,0.24932,96098.0,96088.0,0.052027]
[1732548863465,0.3608,96089.0,96078.0,0.3608]
[1732548863674,0.052032,96080.0,96078.0,0.3608]
[1732548863884,0.052034,96077.0,96075.0,0.00909004]
[1732548864078,0.24932,96076.0,96075.0,0.00909004]
[1732548864271,0.24932,96076.0,96075.0,9.004e-05]
[1732548864473,0.43780001,96077.0,96076.0,0.052034]
[1732548864770,0.43724,96077.0,96076.0,0.052434]
[1732548865273,0.43824,96077.0,96076.0,0.052434]
[1732548866083,0.43724,96077.0,96076.0,0.052434]
[1732548866375,0.43824,96077.0,96076.0,0.0094]
[1732548866564,0.490273,96077.0,96076.0,0.0094]
[1732548866876,0.05204,96066.0,96051.0,0.052047]
[1732548867175,0.3608,96063.0,96054.0,0.052045]
[1732548867474,0.3608,96063.0,96046.0,0.37764095]
[1732548867675,0.05204,96066.0,96058.0,0.052044]
[1732548868005,0.79968,96077.0,96076.0,0.052034]
[1732548868006,0.02247203,96077.0,96076.0,0.052034]
[1732548868182,0.02092223,96077.0,96065.0,0.0004]
[1732548868365,0.3608,96066.0,96065.0,0.0004]
[1732548868580,0.32092223,96077.0,96054.0,0.009]
[1732548868581,0.05204,96065.0,96054.0,0.009]
[1732548868776,0.21792118,96064.0,96051.0,0.061047]
[1732548868992,0.0004,96055.0,96051.0,0.009]
[1732548869214,0.0004,96055.0,96054.0,0.052046]
[1732548869615,8.542e-05,96064.0,96054.0,0.31232]
[1732548869770,8.542e-05,96064.0,96063.0,0.412841]
[1732548870375,8.542e-05,96064.0,96063.0,0.4213043]
[1732548870678,8.542e-05,96064.0,96063.0,0.7335843]
[1732548871175,0.00156205,96083.0,96063.0,0.74009367]
[1732548871471,0.2494,96101.0,96082.0,0.0004]
[1732548871782,0.2494,96101.0,96080.0,0.3608]
[1732548871783,0.052022,96098.0,96086.0,0.052028]
[1732548872081,0.052022,96098.0,96080.0,0.3608]
[1732548872082,0.23867112,96096.0,96087.0,1.1e-07]
[1732548872279,0.23867112,96096.0,96063.0,0.0046]
[1732548872280,0.05204,96064.0,96063.0,0.0046]
[1732548872472,0.052056,96036.0,96035.0,0.0026]
[1732548872707,0.662256,96036.0,96035.0,0.01171875]
[1732548872928,0.662256,96036.0,96035.0,0.00520833]
[1732548873218,0.662256,96036.0,96029.0,0.052059]
[1732548873219,0.6102,96036.0,96014.0,0.00073072]
[1732548873387,0.3608,96036.0,96014.0,0.00073072]
[1732548873573,0.24944,96035.0,96022.0,0.0166475]
[1732548874072,0.24944,96035.0,96034.0,0.052056]
[1732548874281,0.3608,96036.0,96034.0,0.052056]
[1732548874574,0.3608,96036.0,96035.0,0.3124]
[1732548874777,0.3608,96057.0,96035.0,0.6812]
[1732548874969,0.0004,96064.0,96063.0,0.052041]
[1732548875178,0.0004,96064.0,96063.0,0.364321]
[1732548875374,0.24944,96082.0,96063.0,0.31228]
[1732548875578,0.3608,96076.0,96074.0,0.052035]
[1732548875998,0.3608,96085.0,96081.0,0.052031]
[1732548876281,0.3608,96085.0,96084.0,0.0004]
[1732548876479,0.3608,96085.0,96084.0,0.05243]
[1732548876685,0.3608,96098.0,96096.0,0.052023]
[1732548876882,0.3608,96124.0,96105.0,0.052018]
[1732548877096,0.3608,96124.0,96113.0,0.052013]
[1732548877408,0.02084058,96117.0,96114.0,0.00520584]
[1732548877681,0.3608,96115.0,96114.0,0.00520584]
[1732548877880,0.052016,96109.0,96086.0,0.0026]
[1732548878079,0.3608,96101.0,96087.0,0.00650747]
[1732548878274,0.3608,96089.0,96088.0,0.00650747]
[1732548878472,0.412827,96089.0,96088.0,0.00650747]
[1732548878673,0.412827,96089.0,96084.0,0.0004]
[1732548878674,0.9598,96089.0,96084.0,0.0004]
[1732548878876,0.052029,96085.0,96084.0,0.0004]
[1732548879177,0.05204,96065.0,96045.0,0.3608]
[1732548879394,0.3608,96061.0,96052.0,0.052047]
[1732548879585,0.0004,96061.0,96045.0,0.31658573]
[1732548879769,0.0004,96061.0,96041.0,0.286]
[1732548879979,0.0004,96046.0,96045.0,0.052051]
[1732548880187,0.0004,96046.0,96034.0,0.2841]
[1732548880188,0.0004,96042.0,96034.0,0.2841]
[1732548880390,0.0004,96042.0,96040.0,0.052053]
[1732548880686,0.0004,96046.0,96040.0,0.052053]